[Event "MPL 41st IND-ch Teams 2022"]
[Site "Jalgaon"]
[Date "2022.04.10"]
[Round "4.2"]
[White "Sa, Kannan"]
[Black "Harsha Bharathakoti"]
[Result "0-1"]
[ECO "A46"]
[WhiteElo "1930"]
[BlackElo "2499"]
[Annotator "TA"]
[PlyCount "126"]
[EventDate "2022.04.08"]
[EventType "team-tourn"]
[EventCountry "IND"]
[SourceTitle "playchess.com"]
[Source "ChessBase"]
[SourceQuality "1"]
[TimeControl "5400+30"]

{[%evp 9,126,0,13,0,0,2,23,-13,8,-35,-16,-45,20,6,26,9,0,45,33,-8,-28,-23,-14,-46,-46,-63,-25,-72,-66,-63,-61,-141,-120,-161,-162,-296,-298,-292,-141,-274,-233,-301,-320,-312,-309,-288,-308,-287,-292,-586,-583,-533,-465,-453,-426,-388,-247,-245,-235,-229,-252,-247,-243,-242,-240,-223,-212,-160,-86,-349,-362,-356,-308,-366,-364,-353,-326,-386,-387,-371,-380,-527,-510,-636,-641,-724,-714,-816,-715,-793,-714,-737,-699,-690,-691,-657,-640,-698,-700,-700,-694,-826,-826,-832,-808,-1296,-1243,-29981,-29982,-29982,-29983,-29978,-29953,-29979,-29979,-29978,-29980,-29991,-29992]} 1. d4 Nf6 2. Nf3 e6 3. Bg5 c5 4. e3 {[%cal Be2e3,Be3e4][%mdl 32]} h6 5. Bh4 d5 6. c3 {D03: 1 d4 d5 2 Nf3 Nf6 3 Bg5, including Torre Attack with early ...d5.} Nbd7 7. Nbd2 Bd6 8. Qc2 {White has an edge.} Qc7 {[#]} 9. e4 $146 {Hoping for e5.} ({Predecessor:} 9. dxc5 Qxc5 10. Nb3 Qc7 11. Bg3 Bxg3 12. hxg3 b6 13. Nbd4 e5 14. Nb5 Qc6 15. Be2 {0-1 (38) Isgro,T-Tucker,H CServe email 1995}) 9... cxd4 10. Nxd4 Bc5 (10... Bxh2 $2 11. Nb5 Qb8 12. Rxh2 $1 $18 {[%mdl 512]} (12. g3 g5 $16)) (10... a6 $15) 11. Bg3 Qb6 (11... e5 $5 {[%cal Rc5d4]} 12. N4f3 dxe4 13. Nxe4 O-O $11) 12. Nb5 O-O 13. b4 $1 Be7 14. Nc7 (14. a4 $5 {[%cal Rb5c7]} e5 15. exd5 Nxd5 16. O-O-O $14) 14... Rb8 15. a4 Bd6 16. Nb5 Bxg3 17. hxg3 Ng4 (17... a6 $5 {[%cal Ra6b5]} 18. a5 Qd8 $15) 18. Nb3 (18. Nd4 $11 {deserves consideration.}) 18... a6 19. a5 Qd8 20. N5d4 ({White should play} 20. Na3 $1 $15) 20... e5 $1 $17 {[%cal Be6e5,Be5e4,Be4e3][%mdl 32]} 21. Nf3 dxe4 22. Qxe4 (22. Nh2 $142 Nxh2 23. Rxh2) 22... Ndf6 $19 23. Qc2 {[#]} Qc7 (23... e4 $1 $19 {[%cal Re4e3] is more deadly. Strongly threatening ...e3.} 24. Nh2 e3 25. Nxg4 Nxg4) 24. Nc5 {[#]} (24. Be2 $17) 24... e4 $1 25. Nd4 e3 26. f4 Nf2 27. Rh4 {[#]} N2e4 $1 {[%mdl 512]} 28. Nxe4 Nxe4 29. Rc1 $2 (29. Bd3 {is a better defense.} Nxg3 30. O-O-O) 29... Nxg3 30. Bd3 Re8 31. Ne2 {[#]} Qe7 $1 32. Rh2 {[#]} Qf6 $1 33. Nxg3 Qxf4 34. Nf1 e2 $1 $40 {[%mdl 192] Deflection. Black wants a kill. Chess con chili.} (34... Bg4 35. g3 Qf6 36. Be2 $11) 35. Bxe2 {[#]} Rxe2+ $1 {[%mdl 512]} 36. Qxe2 (36. Kxe2 Bg4+ 37. Ke1 Re8+) 36... Qxc1+ 37. Kf2 Be6 38. Qd2 Qa1 {&Nero is more active.} ({Better is} 38... Qxd2+ 39. Nxd2 Rc8) 39. g4 $2 {[%mdl 8192] White does not recover from this.} (39. Ng3 $17) 39... Rc8 ({Inferior is} 39... Bxg4 40. Qf4 Rc8 41. Qxg4 Qxc3 42. Rh3 (42. Kg1 Rc4 $15) 42... Qb2+ 43. Kg1 $11) 40. Rh3 Bxg4 41. Rg3 h5 42. Nh2 Bf5 43. Qd4 {[%csl Gg3][%cal Rd4g7]} Qa2+ ({Don't go for} 43... Qb2+ $2 44. Kg1 g6 45. Nf1 $19) 44. Kg1 {[%csl Gg3][%cal Rd4g7]} Bg6 45. Nf3 Qa1+ 46. Kh2 Qxc3 (46... Rxc3 {is a self mate.} 47. Qd8+ Kh7 48. Ng5+ Kh6 49. Qh8+) 47. Qd5 Qc2+ 48. Nd2 Qc7 49. Nf3 Qf4 {( -> ...Rc2+)} 50. Qe5 Rc2+ 51. Kg1 Qxe5 52. Nxe5 {[%mdl 4096] Endgame KRB-KRN} Rb2 53. Rc3 Rxb4 54. Rc8+ Kh7 {...f6 is the strong threat.} 55. Kf2 f6 56. Nc4 h4 {[%cal Bh5h4,Bh4h3,Bh3h2][%mdl 32] Threatens to win with ...Be4.} 57. Rc7 Be4 {White must now prevent ...Bc6.} 58. Kg1 Rb1+ {Black mates.} 59. Kf2 Rc1 60. Rc8 h3 61. Kg3 Rc3+ 62. Kh2 Rc2+ 63. Kg3 h2 {Weighted Error Value: White=0.51/Black=0.17 (very precise)} 0-1

[Event "MPL 41st IND-ch Teams 2022"]
[Site "Jalgaon"]
[Date "2022.04.10"]
[Round "4.3"]
[White "Sankalp Gupta"]
[Black "Anup Shankar R"]
[Result "1-0"]
[ECO "C41"]
[WhiteElo "2536"]
[BlackElo "1862"]
[Annotator "TA"]
[PlyCount "97"]
[EventDate "2022.04.08"]
[EventType "team-tourn"]
[EventCountry "IND"]
[SourceTitle "playchess.com"]
[Source "ChessBase"]
[SourceQuality "1"]
[TimeControl "5400+30"]

{[%evp 12,97,26,10,20,25,16,12,19,22,46,57,56,54,60,39,59,50,70,54,35,16,70,33,104,122,114,127,345,351,341,339,335,343,367,256,262,243,196,237,240,228,246,222,219,233,220,197,202,202,202,203,249,240,293,288,283,157,155,153,158,143,153,148,399,391,412,385,436,432,468,459,661,657,850,672,662,661,624,633,639,629,825,743,1225,911,3104,2829]} 1. e4 {[%emt 0:00:08]} d6 {[%emt 0:00:40]} 2. d4 {[%emt 0:00:08]} Nf6 {[%emt 0:00:06]} 3. Nc3 {[%emt 0:00:05]} e5 {[%emt 0:00:04]} 4. Nf3 {[%emt 0:00:11]} Nbd7 {[%emt 0:00:18]} 5. Bc4 {[%emt 0:00:13]} Be7 {[%emt 0:00:54]} 6. O-O {[%emt 0:00:46]} O-O {[%emt 0:00:08]} 7. h3 {[%emt 0:02:22] 7.a4 is the modern continuation.} exd4 {[%emt 0:00:06] C41: Philidor Defence.} 8. Qxd4 {[%emt 0:00:30]} Nb6 {[%emt 0:00:38]} 9. Be2 {[%emt 0:09:56]} Nfd7 {[%emt 0:12:21] The position is equal.} 10. Be3 {[%emt 0:05:19] [#]} c6 $146 {[%emt 0:06:46]} ({Predecessor:} 10... Bf6 11. Qd3 Re8 12. Rfe1 Nc5 13. Bxc5 dxc5 14. Qb5 Bxc3 15. bxc3 Qe7 16. Bf1 Bd7 17. Qd3 Rad8 18. Qe3 Ba4 19. Rac1 {½-½ (19) Acs,P (2586)-Popovic,D (2583) Hungary 2013}) 11. Rad1 {[%emt 0:01:38]} Nc5 {[%emt 0:01:51]} 12. Qd2 {[%emt 0:01:56]} Ne6 {[%emt 0:00:50]} 13. Nh2 {[%emt 0:02:23]} Nc7 {[%emt 0:15:39]} 14. a4 {[%emt 0:09:43][%cal Ba2a4,Ba4a5,Ba5a6][%mdl 32]} Be6 {[%emt 0:02:22]} 15. Qc1 {[%emt 0:00:26]} f5 {[%emt 0:05:49]} 16. a5 {[%emt 0:09:49]} Nd7 {[%emt 0:08:21]} (16... Nc4 $11) 17. Bf4 {[%emt 0:01:15]} (17. Nf3 $5 {[%cal Rf3d4]}) 17... Ne8 {[%emt 0:00:26]} (17... Nc5 $14) 18. a6 {[%emt 0:01:59]} b6 {[%emt 0:04:33]} 19. Nf3 $1 $36 {[%emt 0:00:22][%mdl 2048] Black must now prevent Nd4. Keeping Black busy.} fxe4 $2 {[%emt 0:12:54] [#]} (19... Qc8 $16) 20. Nd4 $1 $18 {[%emt 0:00:26]} (20. Nxe4 Nc5 21. Neg5 Bxg5 22. Nxg5 h6 $16) 20... Nc5 {[%emt 0:01:29]} 21. b4 {[%emt 0:11:28]} ({Less strong is} 21. Nxc6 Qd7 $18) 21... Bd7 {[%emt 0:01:17]} 22. bxc5 {[%emt 0:00:15]} bxc5 {[%emt 0:00:02]} 23. Nb3 {[%emt 0:01:59]} d5 {[%emt 0:02:35] [#]} 24. Nxe4 $1 {[%emt 0:00:58][%mdl 512]} dxe4 {[%emt 0:00:20]} 25. Bg4 {[%emt 0:00:12]} Nf6 {[%emt 0:00:02] [#]} 26. Rxd7 $1 {[%emt 0:00:27][%mdl 512]} Nxd7 {[%emt 0:01:37]} 27. Rd1 {[%emt 0:00:05]} Rxf4 {[%emt 0:09:57]} 28. Qxf4 {[%emt 0:00:04]} Qf8 {[%emt 0:00:07]} 29. Qxe4 {[%emt 0:00:14]} Nf6 {[%emt 0:01:24]} 30. Be6+ {[%emt 0:02:11]} Kh8 {[%emt 0:00:02]} 31. Qxc6 {[%emt 0:00:12]} Rb8 {[%emt 0:01:28] [#]} 32. Bc4 $1 {[%emt 0:02:54]} Qc8 {[%emt 0:02:44]} 33. Na5 {[%emt 0:03:22][%cal Bb3a5,Ba5b7,Bb7d6,Bd6f5][%mdl 32]} Bd8 {[%emt 0:02:36] [#]} 34. Be6 $1 {[%emt 0:00:40]} Qc7 $16 {[%emt 0:00:01]} 35. Qxc7 {[%emt 0:04:21] 0x0.00215b8e49aadp-1022s more active pieces.} Bxc7 {[%emt 0:00:02]} 36. Nb7 {[%emt 0:00:10]} Re8 {[%emt 0:01:25]} 37. Bc4 {[%emt 0:00:54]} ({Don't do} 37. Nxc5 $6 Bb6 $14) 37... Bb6 $2 {[%emt 0:03:54][%mdl 8192] Loses the game.} (37... Re4 $16 {was necessary.}) 38. Nd6 $18 {[%emt 0:00:03]} Rb8 {[%emt 0:00:39]} 39. Re1 {[%emt 0:02:01]} h6 {[%emt 0:01:29]} 40. Re7 {[%emt 0:00:45] White is clearly winning.} Kh7 {[%emt 0:00:09]} 41. Nf5 {[%emt 0:02:51]} Nh5 {[%emt 0:01:22]} (41... Ne8 $142 42. Bb5 Kg6 43. Nh4+ (43. Bxe8+ Kxf5 44. Bh5 Kg5 $16) 43... Kf6) 42. g4 {[%emt 0:00:45]} Kg6 {[%emt 0:00:03]} 43. Bf7+ {[%emt 0:00:42]} Kf6 {[%emt 0:00:01]} 44. Bxh5 {[%emt 0:00:11]} g6 {[%emt 0:00:21] [#]} 45. Bxg6 {[%emt 0:00:55]} Kxg6 {[%emt 0:00:01]} 46. Re6+ {[%emt 0:00:09]} Kg5 {[%emt 0:00:10]} 47. Nxh6 {[%emt 0:01:36]} c4 {[%emt 0:01:56]} 48. Kg2 {[%emt 0:00:36] Intending Nf7+ and mate.} Kf4 {[%emt 0:00:38]} 49. f3 {[%emt 0:01:11] Weighted Error Value: White=0.15 (very precise) /Black=0.38} 1-0

[Event "MPL 41st IND-ch Teams 2022"]
[Site "Jalgaon"]
[Date "2022.04.10"]
[Round "4.4"]
[White "Vignesh B"]
[Black "Raja Rithvik R"]
[Result "0-1"]
[ECO "C60"]
[WhiteElo "2249"]
[BlackElo "2490"]
[Annotator "TA"]
[PlyCount "129"]
[EventDate "2022.04.08"]
[EventType "team-tourn"]
[EventCountry "IND"]
[SourceTitle "playchess.com"]
[Source "ChessBase"]
[SourceQuality "1"]
[TimeControl "5400+30"]

{[%evp 9,129,26,33,18,29,21,74,68,76,66,77,77,129,126,139,122,160,159,162,111,100,85,104,95,98,106,203,193,251,168,171,163,167,116,130,0,0,0,0,0,0,0,220,116,95,91,57,0,12,37,40,20,33,49,31,12,329,316,315,328,259,0,0,0,0,0,0,0,0,0,0,-382,-12,-230,-157,-431,-295,-298,-383,-673,-647,-625,-578,-432,-682,-686,-641,-637,-613,-519,-503,-486,-503,-772,-701,-677,-642,-29941,-5666,-12833,-12835,-5081,-448,-436,-421,-442,-414,-408,-389,-389,-366,-500,-383,-373,-276,-365,0,-318,0,-380,-356,-306]} 1. e4 {[%emt 0:00:06]} e5 {[%emt 0:00:00]} 2. Nf3 {[%emt 0:00:05]} Nc6 {[%emt 0:00:00]} 3. Bb5 {[%emt 0:00:05]} Nge7 {[%emt 0:00:22]} 4. d4 {[%emt 0:00:11]} exd4 {[%emt 0:00:23]} 5. Nxd4 {[%emt 0:00:09]} g6 {[%emt 0:02:30]} 6. Nxc6 {[%emt 0:00:08] C60: Ruy Lopez: Unusual Black 3rd moves and 3...g6.} Nxc6 {[#]} (6... dxc6 7. Qxd8+ Kxd8 8. Bc4 $14) 7. h4 $146 {[%emt 0:04:22]} ({Predecessor:} 7. Nc3 Bg7 8. Be3 a6 9. Be2 O-O 10. Qd2 d6 11. O-O Re8 12. Bh6 Bh8 13. f4 Nd4 {1-0 (73) Krzywda,A (2110)-Diermair,A (2490) Katowice 2021}) 7... Bg7 {[%emt 0:03:04]} (7... h5 $11) 8. Bg5 $16 {[%emt 0:03:39] White is better.} Ne7 {[%emt 0:09:01]} 9. Nc3 {[%emt 0:00:22]} h6 {[%emt 0:01:22]} 10. Be3 {[%emt 0:07:50]} a6 {[%emt 0:03:32] [#]} (10... Nc6 $142) 11. Bd4 $1 {[%emt 0:08:10]} f6 {[%emt 0:02:54]} (11... Kf8 12. Bc4) 12. Bc4 {[%emt 0:02:24]} b5 {[%emt 0:16:22]} 13. Bb3 {[%emt 0:02:38]} Bb7 {[%emt 0:05:13]} 14. Qf3 {[%emt 0:12:00]} (14. a4 $18) 14... Qc8 {[%emt 0:13:33] White must now prevent ...c5.} 15. Nd5 {[%emt 0:08:03]} (15. Bxf6 $6 Rf8 16. Bxg7 Rxf3 17. gxf3 c5 $11) 15... Nxd5 {[%emt 0:03:50]} 16. exd5 {[%emt 0:00:29]} O-O {[%emt 0:00:12]} 17. O-O-O {[%emt 0:01:16]} a5 {[%emt 0:09:36]} (17... d6 $16) 18. c3 $18 {[%emt 0:05:14]} f5 {[%emt 0:00:53]} (18... d6 $142 19. Bc2 f5) 19. Rhe1 {[%emt 0:04:03]} a4 {[%emt 0:07:44]} 20. Bc2 {[%emt 0:06:55]} Qd8 {[%emt 0:02:04]} 21. g4 {[%emt 0:10:23]} (21. Bxg7 $18 Kxg7 22. h5) 21... Qxh4 {[%emt 0:03:55]} 22. Bxg7 (22. gxf5 $16 {aiming for Rg1.} Bxd4 23. Rxd4 Qg5+ 24. Kb1) 22... fxg4 $11 {[%emt 0:07:10]} 23. Qd3 {[%emt 0:03:48]} Qg5+ {[%emt 0:00:03]} 24. Kb1 {[%emt 0:02:27]} Kxg7 {[%emt 0:00:07]} 25. Qxb5 {[%emt 0:05:13]} Rab8 {[%emt 0:05:00]} (25... Bc8 $11) 26. Qxd7+ {[%emt 0:01:00]} ({Only move:} 26. Qxa4 $18 h5 27. d6 (27. Qxd7+ Rf7 $16)) 26... Rf7 $16 {[%emt 0:00:00]} 27. Qxa4 {[%emt 0:00:11]} Bc8 {[%emt 0:01:42]} 28. Re8 {[%emt 0:04:22]} Qf6 {[%emt 0:00:45]} 29. Qa7 $36 {[%emt 0:04:34][%mdl 2048] White has the initiative.} Rb7 {[%emt 0:00:01]} 30. Qa8 {[%emt 0:00:27]} Qb6 {[%emt 0:00:04][%csl Gb7][%cal Rb6b2] Chess con chili.} 31. b3 {[%emt 0:02:02]} Rb8 {[%emt 0:00:01]} 32. Qa4 {[%emt 0:01:52][%cal Od5d6]} Qxf2 $2 {[%emt 0:01:15][%mdl 8192] [#]} (32... h5 $1 $11) 33. Rxc8 $1 $18 {[%emt 0:01:06][%mdl 512]} Rxc8 {[%emt 0:01:06]} 34. Qxg4 {[%emt 0:00:05]} Rf5 {[%emt 0:01:19] [#]} 35. Rg1 $2 {[%emt 0:00:56]} (35. Bxf5 Qxf5+ 36. Qxf5 gxf5 $16) (35. d6 $1 $18) 35... Rg5 $11 {[%emt 0:00:13]} 36. Qxc8 {[%emt 0:01:14]} (36. Qd7+ $2 Qf7 37. Qxf7+ Kxf7 38. Rf1+ Kg7 $19) 36... Rxg1+ {[%emt 0:00:45][%mdl 4096] Endgame KQR-KQB} 37. Kb2 {[%emt 0:00:02]} Qf4 {[%emt 0:01:10][%csl Gg1][%cal Rf4c1]} 38. b4 {[%emt 0:00:44]} (38. Qd7+ Qf7 39. Qa4 Rg5 40. Qd4+ Qf6 $17) 38... Rg2 {[%emt 0:01:06] Strongly threatening ...h5.} 39. Qd7+ {[%emt 0:00:27]} Qf7 {[%emt 0:00:05]} 40. Qc6 {[%emt 0:00:05][%mdl 8192]} (40. Qxf7+ $1 $11 Kxf7 41. a4) 40... Rd2 $2 {[%emt 0:00:37]} ({Black should try} 40... h5 $19 41. d6 Qf2 42. Qd7+ (42. Qxc7+ $2 Kh6 $19) 42... Kh6) 41. a4 $2 {[%emt 0:00:29]} (41. Qc4 $1 $11) 41... h5 $19 {[%emt 0:00:39]} (41... Rxd5 42. a5 $11) 42. a5 $2 {[%emt 0:00:04]} (42. Qc5 $17 {was the only chance.}) 42... Qf5 43. Qa4 {[%emt 0:00:38] [#]} ({Don't go for} 43. Qxc7+ $2 Kh6 44. Ka3 Rxc2 $19) 43... h4 $1 {[%emt 0:01:36] Hoping for ...h3.} (43... Qxd5 44. a6 $14) 44. a6 $2 {[%emt 0:00:02]} (44. b5 h3 45. b6 cxb6 46. axb6 Qxd5 47. Qe8) 44... h3 {[%emt 0:00:03]} ({Not} 44... Qxd5 45. a7 Qa8 46. Kc1 $11) 45. a7 h2 {[%emt 0:00:01]} 46. a8=Q {[%emt 0:02:01][%cal Od5d6] And now d6! would win.} h1=Q {[%emt 0:00:02] ( -> ...Qhe4)} 47. Qd8 {[%emt 0:00:30]} Qh2 {[%emt 0:02:04][%cal Rd2c2]} 48. Qdd7+ {[%emt 0:00:56]} Qxd7 {[%emt 0:00:01]} 49. Qxd7+ {KQR-KQB} Kh6 {[%emt 0:00:03]} 50. Qa4 {[%emt 0:00:23]} Qe5 {[%emt 0:01:22]} 51. Qa8 {[%emt 0:01:08]} (51. Qa1 $142 Qxd5 52. Qe1) 51... Qf5 {[%emt 0:00:29]} 52. Qa4 {[%emt 0:00:39]} Qxd5 {[%emt 0:00:13]} 53. Kc1 {[%emt 0:00:30]} Rf2 {[%emt 0:00:25]} (53... Re2 $142 54. Kb1 Qd2 55. Qb3 g5 56. b5 Re1+ 57. Ka2 Qc1 58. Qb2 g4 59. Bb3 g3 60. Qxc1+ Rxc1 61. Bd5 Rxc3 62. Bh1 Rc5 63. Kb3 Rxb5+ 64. Kc2 Kg5 65. Bg2 Rf5 66. Bb7 Rf2+ 67. Kc3 g2 68. Bxg2 Rxg2 69. Kc4 Kf4 70. Kd5 Rg6 71. Kc4 Ke4 72. Kc5 Rd6 73. Kc4 Ke3 74. Kc3 Rd4 75. Kc2 Rc4+ 76. Kb3 Kd3 77. Kb2 Rb4+ 78. Ka3 c5 79. Ka2 Kc2 80. Ka3 Rd4 81. Ka2 Ra4#) 54. b5 {[%emt 0:00:30]} Qd2+ {[%emt 0:00:55]} 55. Kb2 {[%emt 0:00:23]} Rh2 (55... Re2 $142 56. Qh4+ Kg7) 56. Qe4 {[%emt 0:00:06][%csl Gc2][%cal Re4g6]} Qd6 {[%emt 0:01:04]} 57. Qe3+ {[%emt 0:00:25]} Kg7 {[%emt 0:00:07]} 58. Qe4 {[%emt 0:00:43]} Rh5 {[%emt 0:00:12]} 59. Bd3 {[%emt 0:00:48]} Re5 60. Qc4 {[%emt 0:00:28]} Rd5 {[%emt 0:01:04]} 61. Kc2 {[%emt 0:00:32]} Rc5 {[%emt 0:00:23]} 62. Qg4 {[%emt 0:00:15]} Rd5 $2 {[%emt 0:00:46]} ({Better is} 62... Rh5 $19 {...Rh2+ is the strong threat.} 63. Qe4 Re5) 63. Qe4 $2 {[%emt 0:00:20][%mdl 8192]} (63. Qc4 $1 $11 Re5 64. Be4) 63... Rh5 $2 {[%emt 0:00:53]} (63... Rf5 $19 {Threatens to win with ...Rf2+.} 64. Qe2 Rh5) 64. Qc4 $2 {[%emt 0:00:51][%mdl 8192]} (64. Kb2 $1 $11 {and White is okay.} Rf5 65. Qe2) 64... Rh2+ {[%emt 0:00:28]} 65. Kb3 {[%emt 0:00:32] Both players deserved the win here.  Weighted Error Value: White=0.85/Black=0.68} 0-1

[Event "MPL 41st IND-ch Teams 2022"]
[Site "Jalgaon"]
[Date "2022.04.10"]
[Round "4.5"]
[White "Potawad Anirudhha"]
[Black "Vignesh N R"]
[Result "0-1"]
[ECO "B90"]
[WhiteElo "1875"]
[BlackElo "2444"]
[Annotator "TA"]
[PlyCount "100"]
[EventDate "2022.04.08"]
[EventType "team-tourn"]
[EventCountry "IND"]
[SourceTitle "playchess.com"]
[Source "ChessBase"]
[SourceQuality "1"]
[TimeControl "5400+30"]

{[%evp 25,100,0,0,-28,-6,-41,-32,-41,-42,-50,-35,-67,-67,-150,-146,-148,-147,-149,-140,-156,-157,-161,-152,-215,-223,-381,-294,-277,-169,-191,-204,-234,-172,-179,-169,-218,-153,-164,-173,-197,-186,-221,-225,-214,-218,-287,-265,-250,-252,-291,-289,-377,-385,-383,-383,-504,-382,-378,-361,-362,-330,-385,-365,-476,-306,-331,-284,-645,-419,-642,-486,-858,-838,-792,-724,-818,-870]} 1. e4 {[%emt 0:00:05]} c5 {[%emt 0:00:44]} 2. Nf3 {[%emt 0:00:33]} d6 {[%emt 0:00:07]} 3. d4 {[%emt 0:03:40]} cxd4 {[%emt 0:00:03]} 4. Nxd4 {[%emt 0:00:06]} Nf6 {[%emt 0:00:04]} 5. Nc3 {[%emt 0:00:03]} a6 {[%emt 0:00:04]} 6. Be3 {[%emt 0:00:49]} e5 {[%emt 0:00:40]} 7. Nb3 {[%emt 0:00:05]} Be7 {[%emt 0:00:07]} 8. Be2 {[%emt 0:03:11]} Be6 {[%emt 0:00:08]} 9. O-O {[%emt 0:01:08]} Nbd7 {[%emt 0:00:07]} 10. f4 {[%emt 0:01:13]} exf4 {[%emt 0:07:19]} 11. Bxf4 {[%emt 0:00:45]} O-O {[%emt 0:00:07]} 12. Kh1 {[%emt 0:03:58]} Ne5 {[%emt 0:00:24]} 13. Nd4 {[%emt 0:02:17]} Rc8 {[%emt 0:00:18]} 14. Qe1 {[%emt 0:11:01] B92: Sicilian Najdorf: 6 Be2.} Qb6 {[%emt 0:02:01][%csl LRb2,LRd4]} 15. Nxe6 {[%emt 0:02:21]} fxe6 {[%emt 0:00:09]} 16. Rb1 {[%emt 0:00:04] Black is slightly better.} Nfd7 {[%emt 0:14:42] [#] Pair of Knights!} 17. Qg3 $146 {[%emt 0:07:45]} ({Predecessor:} 17. Bd3 Nxd3 18. cxd3 Qd4 19. Qd2 Nc5 20. Rfd1 Qxd3 21. Qe1 Qc4 22. Bxd6 Bxd6 23. Rxd6 {½-½ (39) Piscitelli,A-Reis,C Brazil CXEB 1980}) 17... Bf6 {[%emt 0:00:26]} 18. h4 {[%emt 0:05:16]} Qd8 {[%emt 0:05:23]} 19. Bg5 {[%emt 0:10:42]} (19. h5 $15) 19... Bxg5 $17 {[%emt 0:00:22]} 20. hxg5 {[%emt 0:00:35]} Qe7 {[%emt 0:00:47]} 21. Qe3 {[%emt 0:05:57]} g6 {[%emt 0:01:14]} 22. Rfd1 {[%emt 0:07:37]} Nf7 {[%emt 0:02:00]} 23. Qg3 {[%emt 0:00:59]} Rc5 {[%emt 0:00:15]} (23... Nxg5 24. Qxd6 Qxd6 25. Rxd6 $15) 24. Rd4 {[%emt 0:06:49]} (24. Qe3 $17 {keeps fighting.}) 24... Rxg5 $19 (24... Qxg5 25. Qxg5 Rxg5 26. Rb4 $17) 25. Qh3 (25. Qe3 {was forced.}) 25... Nf6 {[%emt 0:04:39] [#] Threatens to win with ...Ne5.} 26. Rf1 {[%emt 0:06:13]} Re5 {[%emt 0:03:50]} 27. a4 {[%emt 0:02:17]} Kg7 {[%emt 0:02:38]} 28. Qh4 {[%emt 0:03:01]} Rc8 {[%emt 0:04:44]} 29. Rb4 {[%emt 0:02:04][%cal Ob4b7]} Rc7 {[%emt 0:03:01]} 30. Rd4 {[%emt 0:01:51]} (30. Kg1 {might work better.}) 30... Rc6 {[%emt 0:06:25]} 31. Qf2 {[%emt 0:01:29]} Ng5 {[%emt 0:04:13][%cal Rf6e4]} 32. Qh4 {[%emt 0:00:58]} Rc7 {[%emt 0:01:11][%cal Og5e4]} 33. Bd1 {[%emt 0:01:23]} b5 {[%emt 0:02:50]} 34. axb5 {[%emt 0:01:04]} axb5 {[%emt 0:00:04]} 35. g3 {[%emt 0:01:33]} Rb7 {[%emt 0:04:36]} 36. Rb4 {[%emt 0:00:43]} Qe8 {[%emt 0:02:12]} 37. Be2 ({Of course not} 37. Qf4 Rf7 38. Qe3 {[#]} Ngxe4 $1 {[%mdl 512]}) 37... Qc6 {[%emt 0:05:02]} 38. Kh2 {[%emt 0:03:44]} (38. Qf4 Rf7 39. Qh4 (39. Bxb5 $2 Rxb5 40. Rxb5 Nfxe4 $19) 39... Ngxe4 40. Nxe4 Rxe4 41. Rxe4 Qxe4+ 42. Qxe4 Nxe4 43. Rxf7+ Kxf7 44. Bxb5 Nxg3+ 45. Kg1 d5 $19) 38... h5 {[%emt 0:05:42]} 39. Qf4 {[%emt 0:02:52]} Rf7 {[%emt 0:00:13]} 40. Qc1 {[%emt 0:01:16]} Ngxe4 {[%emt 0:03:25]} 41. Nxe4 {[%emt 0:00:49]} Rxe4 {[%emt 0:00:47] The board is on fire.} ({But not} 41... Nxe4 $2 42. Rxf7+ Kxf7 43. Bf3 $19) 42. Rxe4 {[%emt 0:01:28]} Qxe4 {[%emt 0:00:06]} 43. Bf3 {[%emt 0:00:08]} Qf5 {[%emt 0:02:23]} 44. Qd2 {[%emt 0:00:45]} Ne4 {[%emt 0:00:35]} 45. Qd4+ {[%emt 0:00:39]} e5 {[%emt 0:03:10]} 46. Qd5 {[%emt 0:00:55]} (46. Qd3) 46... Nf6 {[%emt 0:00:31]} 47. Qxb5 {[%emt 0:00:48]} (47. Qb3 $142) 47... Qxc2+ {[%emt 0:00:25] Black is clearly winning.} 48. Kh1 {[%emt 0:00:02]} (48. Kg1 $142) 48... Ne4 {[%emt 0:00:33]} 49. Bxe4 {[%emt 0:00:59]} Qxe4+ {[%emt 0:00:02]} 50. Kh2 {[%emt 0:00:13]} Rb7 {[%emt 0:00:23] Weighted Error Value: White=0.62/Black=0.31} 0-1

[Event "MPL 41st IND-ch Teams 2022"]
[Site "Jalgaon"]
[Date "2022.04.10"]
[Round "4.6"]
[White "Deepan Chakkravarthy J."]
[Black "Rachit H Gurnani"]
[Result "1-0"]
[ECO "C98"]
[WhiteElo "2520"]
[BlackElo "1854"]
[Annotator "RC"]
[PlyCount "93"]
[EventDate "2022.04.08"]
[EventType "team-tourn"]
[EventCountry "IND"]
[SourceTitle "playchess.com"]
[Source "ChessBase"]
[SourceQuality "1"]
[TimeControl "5400+30"]

1. e4 e5 2. Nf3 Nc6 3. Bb5 a6 4. Ba4 Nf6 5. O-O Be7 6. Re1 b5 7. Bb3 d6 8. c3 O-O 9. h3 Na5 10. Bc2 c5 11. d4 Qc7 12. Nbd2 Nc6 13. d5 Nd8 14. a4 Rb8 15. b3 Ne8 16. Nf1 g6 17. N3h2 f6 18. f4 exf4 19. Bxf4 Nf7 20. Ra2 Ng7 21. Ng3 Ne5 22. Qe2 b4 23. cxb4 Rxb4 24. Bd2 Rb8 25. Nf3 Qa7 26. Kh2 a5 27. Nxe5 fxe5 28. Rf1 Ba6 29. Bd3 Bxd3 30. Qxd3 Bh4 31. Rxf8+ Rxf8 32. Ne2 Nh5 33. Ra1 Nf4 34. Bxf4 exf4 35. Rf1 g5 36. e5 dxe5 37. d6 Qd7 38. Qd5+ Qf7 39. Qxe5 Bg3+ 40. Kh1 Bh4 41. Ng1 Qxb3 42. Nf3 Qd3 43. Rc1 Qe3 44. Qd5+ Kh8 45. Rd1 Bg3 46. d7 g4 47. d8=Q 1-0